bitfinex/quotes_SOLUSD_20250219
["timestamp","ask_amount","ask_price","bid_price","bid_amount"]
[1739978248077,0.063,169.22,169.21,70.91199824]
[1739978249592,0.063,169.22,169.21,151.81199824]
[1739978249916,0.063,169.22,169.21,150.92595952]
[1739978252015,0.03,169.28,169.24,38.64964886]
[1739978252322,0.03,169.28,169.27,64.11615952]
[1739978252495,0.03,169.28,169.27,69.43615952]
[1739978252703,0.03,169.28,169.27,51.91679814]
[1739978253239,0.03,169.28,169.27,5.32]
[1739978253447,0.03,169.28,169.27,51.91679814]
[1739978254108,0.03,169.28,169.27,58.71033944]
[1739978254327,0.03,169.28,169.27,51.91679814]
[1739978255418,0.03,169.28,169.27,23.96964886]
[1739978256233,0.03,169.28,169.27,23.94964886]
[1739978256615,0.03,169.28,169.27,57.80449814]
[1739978257808,0.03,169.28,169.27,23.94964886]
[1739978258214,0.03,169.28,169.27,5.3]
[1739978258727,0.03,169.28,169.24,46.59679814]
[1739978259110,0.03,169.28,169.26,18.64964886]
[1739978259311,0.03,169.28,169.25,5.28]
[1739978259613,27.97714928,169.28,169.26,5.28]
[1739978260011,0.03,169.28,169.26,5.28]
[1739978262121,0.03,169.28,169.27,46.59679814]
[1739978262849,0.03,169.28,169.27,127.49679814]
[1739978263054,0.03,169.28,169.27,133.40449814]
[1739978263418,0.03,169.28,169.27,134.40449814]
[1739978263938,0.03,169.28,169.27,133.40449814]
[1739978266038,0.03,169.28,169.27,138.66449814]
[1739978266838,0.03,169.28,169.27,57.76449814]
[1739978267618,0.03,169.28,169.27,138.66449814]
[1739978268215,0.03,169.3,169.27,138.66449814]
[1739978268216,0.03,169.3,169.27,140.66449814]
[1739978268559,0.03,169.3,169.29,46.59679814]
[1739978268732,0.03,169.3,169.29,127.49679814]
[1739978269123,0.03,169.3,169.29,163.35094742]
[1739978269325,0.03,169.3,169.29,475.35094742]
[1739978269758,0.03,169.35,169.3,26.16374886]
[1739978269926,0.03,169.35,169.34,66.59679814]
[1739978270124,0.03,169.35,169.34,153.64216922]
[1739978270360,0.03,169.35,169.34,152.75679814]
[1739978271231,0.03,169.35,169.34,158.66199814]
[1739978272947,0.03,169.35,169.34,138.66199814]
[1739978273266,0.03,169.35,169.34,57.76199814]
[1739978274662,0.03,169.35,169.34,51.85679814]
[1739978274848,0.03,169.35,169.34,57.76199814]
[1739978275541,0.03,169.35,169.34,23.90964886]
[1739978277156,0.03,169.35,169.34,18.64964886]
[1739978277353,0.03,169.35,169.34,23.86964886]
[1739978278058,0.03,169.35,169.34,57.72199814]
[1739978279255,0.03,169.35,169.34,51.81679814]
[1739978279457,0.03,169.35,169.34,57.72199814]
[1739978280964,0.03,169.35,169.34,51.81679814]
[1739978281382,0.03,169.35,169.34,23.86964886]
[1739978282292,27.97714928,169.35,169.29,33.85414928]
[1739978282469,27.94714928,169.34,169.27,33.91764928]
[1739978282790,27.94714928,169.32,169.28,5.2]
[1739978282961,27.94714928,169.32,169.29,18.64964886]
[1739978283167,27.94714928,169.33,169.28,5.2]
[1739978283363,27.94714928,169.32,169.28,5.2]
[1739978283569,27.94714928,169.3,169.28,5.2]
[1739978283889,27.94714928,169.29,169.28,5.2]
[1739978284089,110.64714928,169.31,169.28,5.2]
[1739978284469,27.94714928,169.3,169.28,5.2]
[1739978284777,27.94714928,169.29,169.28,5.2]
[1739978284976,110.64714928,169.3,169.28,5.2]
[1739978285381,82.7,169.3,169.28,5.2]
[1739978286968,0.03,169.35,169.3,18.64964886]
[1739978287164,0.03,169.35,169.34,18.64964886]
[1739978287362,0.03,169.35,169.34,51.79679814]
[1739978288384,0.03,169.35,169.34,57.70199814]
[1739978289095,0.03,169.35,169.34,51.79679814]
[1739978289294,0.03,169.35,169.34,23.84964886]
[1739978289682,0.03,169.35,169.34,51.79679814]
[1739978290194,0.03,169.35,169.34,58.58758608]
[1739978290919,0.03,169.35,169.34,57.70199814]
[1739978291792,0.03,169.35,169.34,51.79679814]
[1739978291998,0.03,169.35,169.34,23.84964886]
[1739978292920,0.03,169.35,169.34,51.79679814]
[1739978293120,0.03,169.35,169.34,57.70199814]
[1739978293320,84.3228,169.47,169.37,38.64964886]
[1739978293514,82.7,169.47,169.42,27.94714928]
[1739978293692,82.7,169.47,169.43,33.12714928]
[1739978294207,110.64714928,169.47,169.43,5.18]
[1739978294538,27.94714928,169.46,169.43,5.18]
[1739978294720,88.6008,169.47,169.43,5.18]
[1739978294721,27.94714928,169.45,169.43,5.18]
[1739978295102,27.94714928,169.46,169.43,5.18]
[1739978295418,110.64714928,169.47,169.43,5.18]
[1739978295618,5.8997,169.5,169.44,27.94714928]
[1739978296125,5.8997,169.5,169.43,23.82964886]
[1739978296126,27.94714928,169.46,169.43,5.18]
[1739978296496,27.94714928,169.44,169.43,5.18]
[1739978296924,82.7,169.43,169.4,5.2]
[1739978297116,27.94714928,169.41,169.4,5.2]
[1739978297507,82.7,169.42,169.4,5.2]
[1739978297725,27.94714928,169.41,169.4,5.2]
[1739978298219,33.84994928,169.41,169.4,5.2]
[1739978298733,82.7,169.42,169.4,5.2]
[1739978299205,27.94714928,169.47,169.41,18.64964886]
[1739978299397,110.64714928,169.48,169.41,46.59679814]
[1739978299592,116.54754928,169.48,169.41,46.59679814]
[1739978299799,27.94714928,169.46,169.41,18.64964886]
[1739978300305,88.6004,169.48,169.41,18.64964886]
[1739978300605,82.7,169.48,169.41,52.49939814]
[1739978300818,27.94714928,169.49,169.42,27.94714928]
[1739978301020,41.83064928,169.5,169.44,18.64964886]
[1739978301218,27.94714928,169.49,169.44,18.64964886]
[1739978301433,27.94714928,169.5,169.44,18.64964886]
[1739978302013,82.7,169.51,169.44,18.64964886]
[1739978302219,30.97714928,169.52,169.45,46.59679814]
[1739978302408,30.97714928,169.52,169.47,18.64964886]
[1739978302409,36.87624928,169.52,169.47,18.64964886]
[1739978302803,8.9291,169.52,169.47,18.64964886]
[1739978303002,36.87624928,169.52,169.47,18.64964886]
[1739978303231,30.97714928,169.52,169.47,18.64964886]
[1739978303416,47.94714928,169.51,169.47,18.64964886]
[1739978303725,47.94714928,169.51,169.46,5.2]
[1739978303931,3.03,169.52,169.47,18.64964886]
[1739978304137,3.03,169.52,169.5,18.64964886]
[1739978304338,3.03,169.52,169.51,46.59679814]
[1739978304501,3.03,169.52,169.51,128.3815744]
[1739978304842,3.03,169.52,169.51,127.49679814]
[1739978306038,3.03,169.52,169.51,134.39609814]
[1739978306235,0.15,169.64,169.55,20.0]
[1739978306441,0.15,169.64,169.62,27.94714928]
[1739978306642,0.15,169.64,169.63,33.14714928]
[1739978306942,0.15,169.64,169.63,51.79679814]
[1739978307554,0.15,169.64,169.63,5.2]
[1739978308038,0.15,169.64,169.63,51.79679814]
[1739978308240,0.15,169.64,169.63,132.69679814]
[1739978308616,0.15,169.64,169.63,104.74964886]
[1739978308940,1.0,169.74,169.63,104.74964886]
[1739978308941,8.9499597,169.84,169.77,1.0]
[1739978309128,8.9499597,169.84,169.78,9.22086578]
[1739978309325,8.9499597,169.84,169.81,27.94714928]
[1739978309547,27.94714928,169.85,169.71,0.88310136]
[1739978309722,27.94714928,169.85,169.76,27.94714928]
[1739978309924,27.94714928,169.85,169.77,18.64964886]
[1739978310135,27.94714928,169.83,169.77,18.64964886]
[1739978310335,27.94714928,169.81,169.72,5.72]
[1739978310637,27.94714928,169.8,169.73,29.74642131]
[1739978310840,27.94714928,169.78,169.76,29.08646616]
[1739978311043,27.94714928,169.78,169.77,30.44609817]
[1739978311251,44.62600817,169.83,169.82,2.0]
[1739978311423,44.62600817,169.83,169.82,54.51679814]
[1739978311851,44.62600817,169.83,169.82,84.8494444]
[1739978312046,44.62600817,169.83,169.82,90.7379444]
[1739978312237,0.23,169.88,169.87,1.0]
[1739978312434,20.23,169.88,169.84,2.0]
[1739978312650,20.23,169.88,169.85,2.0]
[1739978312832,20.23,169.88,169.87,1.0]
[1739978313163,0.23,169.88,169.87,1.0]
[1739978313361,0.23,169.88,169.87,2.0]
[1739978313543,0.23,169.88,169.87,20.64964886]
[1739978314059,0.23,169.88,169.87,2.0]
[1739978314863,0.23,169.88,169.86,2.0]
[1739978315041,0.23,169.88,169.87,1.0]
[1739978315560,0.23,169.88,169.87,2.0]
[1739978315733,0.23,169.88,169.87,20.64964886]
[1739978315934,0.26,169.88,169.87,20.64964886]
[1739978316136,0.26,169.88,169.87,65.7626283]
[1739978316429,0.26,169.88,169.87,2.0]
[1739978317442,0.26,169.88,169.87,30.83542766]
[1739978317743,21.63157716,169.88,169.85,1.0]
[1739978317929,20.0,169.91,169.85,73.16569976]
[1739978318135,45.11297944,169.87,169.85,74.16569976]
[1739978318532,20.0,169.9,169.85,73.16569976]
[1739978318854,45.11297944,169.86,169.85,73.16569976]
[1739978319429,45.11297944,169.86,169.83,6.006]
[1739978319633,45.11297944,169.84,169.83,6.006]
[1739978320058,45.11297944,169.85,169.83,6.006]
[1739978320437,45.11297944,169.86,169.83,7.006]
[1739978320640,45.11297944,169.85,169.83,6.006]
[1739978321798,45.11297944,169.86,169.83,7.006]
[1739978322086,45.11297944,169.86,169.83,1.063]
[1739978322583,45.11297944,169.84,169.83,0.063]
[1739978322878,45.11297944,169.84,169.83,1.063]
[1739978323083,45.11297944,169.84,169.83,0.063]
[1739978323485,45.11297944,169.84,169.83,1.063]
[1739978323655,45.11297944,169.84,169.83,0.063]
[1739978324166,3.35915616,169.83,169.82,7.92]
[1739978324357,48.4721356,169.83,169.82,7.92]
[1739978324555,48.4721356,169.83,169.78,81.9]
[1739978324782,23.35915616,169.83,169.79,5.8]
[1739978324976,20.0,169.81,169.79,5.8]
[1739978325688,116.11515888,169.8,169.79,5.8]
[1739978325996,65.11297944,169.8,169.74,7.8]
[1739978326156,45.11297944,169.77,169.75,2.0]
[1739978326359,45.11297944,169.77,169.75,1.0]
[1739978326559,45.11297944,169.8,169.77,2.0]
[1739978326771,45.11297944,169.82,169.78,1.0]
[1739978326977,20.0,169.79,169.78,1.0]
[1739978327296,54.3604356,169.83,169.78,2.0]
[1739978327666,3.35915616,169.83,169.8,2.0]
[1739978327886,20.0,169.82,169.81,6.78]
[1739978328188,20.0,169.82,169.81,5.78]
[1739978328600,45.11297944,169.82,169.81,5.78]
[1739978329399,20.0,169.79,169.78,0.063]
[1739978329566,71.00257944,169.79,169.78,0.063]
[1739978331766,85.72657944,169.79,169.72,5.76]
[1739978331972,45.11297944,169.73,169.71,5.76]
[1739978332667,45.11297944,169.72,169.71,5.76]
[1739978333784,51.00497944,169.72,169.71,5.76]
[1739978333976,45.11297944,169.72,169.71,5.76]
[1739978334588,20.0,169.69,169.65,1.0]
[1739978334791,45.11297944,169.68,169.64,0.24934698]
[1739978335369,137.71614604,169.68,169.63,0.24934698]
[1739978335567,45.11297944,169.65,169.62,6.72]
[1739978335774,45.11297944,169.64,169.6,5.7]
[1739978336180,5.8941,169.66,169.58,18.64964886]
[1739978336404,74.80954855,169.67,169.6,45.11297944]
[1739978336595,80.70334855,169.67,169.6,45.11297944]
[1739978336775,27.84270497,169.66,169.59,46.49235383]
[1739978337099,63.43307408,169.67,169.6,27.84270497]
[1739978337609,63.43307408,169.67,169.63,27.84270497]
[1739978337610,29.69656911,169.67,169.63,27.84270497]
[1739978337897,81.02777078,169.68,169.66,27.84270497]
[1739978338102,81.02777078,169.68,169.67,27.84270497]
[1739978338398,81.02777078,169.68,169.67,108.74270497]
[1739978339385,81.02777078,169.68,169.67,127.39235383]
[1739978339710,81.02777078,169.68,169.67,133.28605383]
[1739978340004,27.84270497,169.76,169.68,18.64964886]
[1739978340200,27.84270497,169.76,169.69,27.84270497]
[1739978340612,45.19103896,169.77,169.7,65.19103896]
[1739978340775,45.19103896,169.78,169.7,65.19103896]
[1739978340981,45.19103896,169.77,169.7,65.19103896]
[1739978341200,45.19103896,169.76,169.7,20.0]
[1739978341400,45.19103896,169.75,169.7,20.0]
[1739978341777,45.19103896,169.73,169.67,80.9]
[1739978341983,45.19103896,169.71,169.65,5.66]
[1739978342191,164.19656911,169.77,169.66,45.19103896]
[1739978342508,45.19103896,169.75,169.68,45.19103896]
[1739978342709,45.19103896,169.73,169.67,18.71264886]
[1739978342877,5.8899,169.78,169.67,0.063]
[1739978342878,45.19103896,169.68,169.67,0.063]
[1739978343293,45.19103896,169.69,169.67,0.063]
[1739978344081,45.19103896,169.68,169.67,0.063]
[1739978344576,45.19103896,169.69,169.67,0.063]
[1739978344781,75.19103896,169.7,169.67,0.063]
[1739978344984,30.0,169.7,169.67,0.063]
[1739978346508,30.0,169.7,169.69,20.0]
[1739978346708,30.0,169.7,169.69,165.74068782]
[1739978346909,30.0,169.7,169.69,210.93172678]
[1739978347091,45.22103896,169.83,169.73,20.0]
[1739978347285,0.03,169.83,169.77,45.19103896]
[1739978347511,0.03,169.83,169.79,45.19103896]
[1739978347724,0.03,169.83,169.78,63.84068782]
[1739978347908,45.19103896,169.82,169.75,45.19103896]
[1739978348223,45.19103896,169.81,169.74,92.4311]
[1739978348405,45.19103896,169.81,169.74,137.62213896]
[1739978348718,45.19103896,169.81,169.74,86.54]
[1739978348922,45.19103896,169.81,169.74,131.73103896]
[1739978349104,45.19103896,169.78,169.74,86.54]
[1739978349307,45.19103896,169.77,169.74,5.64]
[1739978349703,45.19103896,169.78,169.74,5.64]
[1739978350415,5.8889,169.81,169.74,5.64]
[1739978350416,45.19103896,169.76,169.74,5.64]
[1739978350591,45.19103896,169.75,169.71,80.9]
[1739978350793,45.19103896,169.76,169.71,86.7923]
[1739978351001,35.58546911,169.81,169.74,35.969599]
[1739978351297,45.19103896,169.78,169.74,35.969599]
[1739978352632,45.19103896,169.8,169.74,35.969599]
[1739978352920,45.19103896,169.76,169.74,35.969599]
[1739978353224,45.19103896,169.75,169.74,35.969599]
[1739978353709,1.5054,169.78,169.74,35.969599]
[1739978353906,45.19103896,169.75,169.74,35.969599]
[1739978354301,51.08203896,169.75,169.67,5.663]
[1739978354512,45.19103896,169.71,169.67,0.063]
[1739978354818,45.19103896,169.68,169.67,0.063]
[1739978355497,45.19103896,169.69,169.67,0.063]
[1739978355899,45.19103896,169.68,169.67,0.063]
[1739978357799,51.08443896,169.68,169.67,0.063]
[1739978358532,45.19103896,169.68,169.67,0.063]
[1739978358890,51.08443896,169.68,169.67,0.063]
[1739978359128,45.19103896,169.68,169.67,0.063]
[1739978359600,51.08443896,169.68,169.67,0.063]
[1739978360930,73.33928782,169.68,169.67,0.063]
[1739978361303,72.33928782,169.68,169.67,0.063]
[1739978361716,73.33928782,169.68,169.67,0.063]
[1739978361906,72.33928782,169.68,169.67,0.063]
[1739978362097,75.69561519,169.68,169.67,0.0001]
[1739978362319,74.69561519,169.68,169.67,0.0001]
[1739978362537,77.62489462,169.68,169.67,0.0001]
[1739978362705,61.29407283,169.68,169.67,0.0001]
[1739978363017,59.29407283,169.68,169.67,0.0001]
[1739978363221,35.35881717,169.68,169.67,0.0001]
[1739978363398,134.5,169.71,169.67,0.0001]
[1739978363598,27.86021717,169.7,169.67,0.0001]
[1739978364197,27.86021717,169.69,169.67,0.0001]
[1739978364406,27.86021717,169.68,169.67,0.0001]
[1739978365301,27.86021717,169.69,169.67,0.0001]
[1739978365524,20.0,169.68,169.67,0.0001]
[1739978365724,168.25261717,169.71,169.67,0.0001]
[1739978366030,27.86021717,169.72,169.67,0.0001]
[1739978366331,116.45121717,169.75,169.68,27.86021717]
[1739978366533,27.86021717,169.73,169.67,0.0001]
[1739978366703,27.86021717,169.72,169.67,0.0001]
[1739978366904,27.86021717,169.73,169.67,0.0001]
[1739978367435,82.7,169.75,169.68,27.86021717]
[1739978367730,110.56021717,169.75,169.68,27.86021717]
[1739978367929,27.86021717,169.74,169.67,33.75401717]
[1739978368304,82.7,169.75,169.67,33.75401717]
[1739978368305,27.86021717,169.73,169.67,0.0001]
[1739978368636,27.86021717,169.71,169.67,0.0001]
[1739978369005,47.86021717,169.72,169.67,0.0001]
[1739978369530,20.0,169.72,169.67,0.0001]
[1739978369725,27.86021717,169.71,169.67,0.0001]
[1739978370440,47.86021717,169.72,169.67,0.0001]
[1739978370735,27.86021717,169.71,169.67,0.0001]
[1739978371309,27.86021717,169.73,169.67,0.0001]
[1739978372239,27.86021717,169.74,169.67,27.86031717]
[1739978373042,27.86021717,169.73,169.67,0.0001]
[1739978373335,27.86021717,169.71,169.67,0.0001]
[1739978373834,27.86021717,169.7,169.67,0.0001]
[1739978374044,27.86021717,169.68,169.67,0.0001]
[1739978375123,47.50986603,169.68,169.67,0.0001]
[1739978375307,27.86021717,169.68,169.67,0.0001]
[1739978375507,20.0,169.65,169.58,11.1369]
[1739978375738,27.86021717,169.64,169.58,11.1369]
[1739978375943,27.86021717,169.64,169.58,38.99711717]
[1739978376254,27.86021717,169.64,169.58,11.1369]
[1739978376828,20.0,169.65,169.58,11.1369]
[1739978376829,27.86021717,169.62,169.58,5.2401]
[1739978377030,27.86021717,169.61,169.58,5.2401]
[1739978377315,27.86021717,169.6,169.56,80.9]
[1739978377515,27.86021717,169.61,169.55,6.572]
[1739978378318,160.3946,169.65,169.55,34.43221717]
[1739978378523,27.86021717,169.61,169.55,6.572]
[1739978378754,20.0,169.61,169.55,6.572]
[1739978379046,47.86021717,169.61,169.55,6.572]
[1739978379336,27.86021717,169.63,169.56,27.86021717]
[1739978379840,27.86021717,169.6,169.55,6.572]
[1739978380022,27.86021717,169.6,169.53,39.15861717]
[1739978380223,27.86021717,169.59,169.53,39.15861717]
[1739978380543,20.0,169.61,169.55,27.86021717]
[1739978380940,20.0,169.61,169.56,5.8976]
[1739978381322,27.86021717,169.65,169.58,27.86021717]
[1739978381727,33.75401717,169.67,169.6,27.86021717]
[1739978381935,27.86021717,169.66,169.59,27.86021717]
[1739978382250,27.86021717,169.64,169.57,27.86021717]
[1739978382417,5.8938,169.67,169.57,27.86021717]
[1739978382740,47.86021717,169.64,169.57,27.86021717]
[1739978383335,27.86021717,169.63,169.56,27.86021717]
[1739978383532,27.86021717,169.62,169.55,27.86021717]
[1739978383744,27.86021717,169.6,169.54,33.75841717]
[1739978384218,27.86021717,169.6,169.53,33.24021717]
[1739978384546,27.86021717,169.61,169.54,27.86021717]
[1739978385250,33.75621717,169.61,169.54,27.86021717]
[1739978385453,27.86021717,169.6,169.53,27.86021717]
[1739978385750,20.0,169.62,169.53,27.86021717]
[1739978385949,27.86021717,169.6,169.54,27.86021717]
[1739978386120,27.86021717,169.61,169.54,27.86021717]
[1739978386321,27.86021717,169.62,169.55,27.86021717]
[1739978387142,33.75511717,169.64,169.57,27.86021717]
[1739978387620,20.0,169.62,169.57,27.86021717]
[1739978387942,33.75471717,169.65,169.58,27.86021717]
[1739978388343,27.86021717,169.64,169.57,27.86021717]
[1739978388544,27.86021717,169.65,169.58,27.86021717]
[1739978388855,33.75431717,169.67,169.6,27.86021717]
[1739978389024,110.56021717,169.67,169.6,27.86021717]
[1739978389222,110.56021717,169.67,169.61,27.86021717]
[1739978389223,82.7,169.67,169.61,27.86021717]
[1739978389419,134.5,169.69,169.62,27.86021717]
[1739978389420,27.86021717,169.69,169.62,27.86021717]
[1739978389649,20.0,169.67,169.63,27.86021717]
[1739978389842,20.0,169.67,169.62,27.86021717]
[1739978390046,20.0,169.67,169.61,27.86021717]
[1739978390353,47.86021717,169.67,169.6,27.86021717]
[1739978390718,27.86021717,169.68,169.61,27.86021717]
[1739978390928,27.86021717,169.68,169.6,18.64964886]
[1739978391125,27.86021717,169.68,169.61,27.86021717]
[1739978391327,33.75381717,169.68,169.61,27.86021717]
[1739978392349,27.86021717,169.66,169.59,114.10021717]
[1739978392559,27.86021717,169.65,169.59,86.24]
[1739978393055,27.86021717,169.65,169.59,5.34]
[1739978393428,33.75491717,169.65,169.59,5.34]
[1739978394460,27.86021717,169.65,169.59,33.20021717]
[1739978394630,33.75481717,169.65,169.59,33.20021717]
[1739978394835,33.75481717,169.65,169.59,5.34]
[1739978395033,33.75481717,169.65,169.57,0.063]
[1739978395034,27.86021717,169.61,169.57,0.063]
[1739978395365,27.86021717,169.62,169.57,0.063]
[1739978395564,33.75581717,169.62,169.57,0.063]
[1739978395756,27.86021717,169.61,169.57,0.063]
[1739978396552,27.86021717,169.62,169.57,0.063]
[1739978397642,33.75581717,169.62,169.57,0.063]
[1739978397844,27.86021717,169.61,169.57,0.063]
[1739978398068,5.8956,169.62,169.57,0.063]
[1739978398069,27.86021717,169.6,169.57,0.063]
[1739978398968,27.86021717,169.61,169.57,0.063]
[1739978399272,27.86021717,169.62,169.57,0.063]
[1739978400456,27.86021717,169.61,169.57,0.063]
[1739978401276,27.86021717,169.6,169.57,0.063]
[1739978401570,27.86021717,169.59,169.57,0.063]
[1739978401752,27.86021717,169.58,169.57,0.063]
[1739978402443,27.86021717,169.59,169.57,0.063]
[1739978402646,27.86021717,169.58,169.57,0.063]
[1739978403043,1.5302,169.62,169.57,0.063]
[1739978403274,29.39041717,169.62,169.57,0.063]
[1739978403456,47.86021717,169.61,169.57,0.063]
[1739978403866,53.75621717,169.61,169.57,0.063]
[1739978404055,27.86021717,169.59,169.57,0.063]
[1739978404378,0.03,169.62,169.57,27.92321717]
[1739978404556,0.03,169.62,169.58,27.86021717]
[1739978404755,0.03,169.62,169.57,0.063]
[1739978405545,27.86021717,169.61,169.57,0.063]
[1739978405759,5.9255,169.62,169.57,0.063]
[1739978405760,27.86021717,169.6,169.57,0.063]
[1739978405957,27.86021717,169.61,169.57,0.063]
[1739978406272,33.78571717,169.62,169.57,0.063]
[1739978406451,27.86021717,169.61,169.57,0.063]
[1739978406648,27.86021717,169.6,169.57,0.063]
[1739978406853,27.86021717,169.59,169.57,0.063]
[1739978407043,5.9255,169.62,169.57,0.063]
[1739978407044,27.86021717,169.6,169.57,0.063]
[1739978407353,5.9255,169.62,169.57,0.063]
[1739978407354,27.86021717,169.59,169.57,0.063]
[1739978407974,27.86021717,169.6,169.57,0.063]
[1739978408779,0.03,169.62,169.57,27.92321717]
[1739978409277,0.03,169.62,169.57,0.063]
[1739978409661,0.03,169.62,169.58,18.64964886]
[1739978409872,0.03,169.62,169.61,52.40566603]
[1739978410379,0.03,169.62,169.59,86.7965]
[1739978410577,0.03,169.62,169.59,80.9]
[1739978410880,0.03,169.62,169.59,86.7965]
[1739978411174,0.03,169.62,169.59,114.65671717]
[1739978411375,0.03,169.62,169.61,33.86521717]
[1739978411575,0.03,169.62,169.61,138.63486603]
[1739978411876,0.03,169.62,169.61,144.53066603]
[1739978412178,0.03,169.71,169.62,18.64964886]
[1739978412359,0.03,169.71,169.67,27.86021717]
[1739978412567,0.03,169.71,169.7,46.50986603]
[1739978412775,2.88432498,169.76,169.74,18.64964886]
[1739978412977,2.88432498,169.76,169.75,46.50986603]
[1739978413364,27.86021717,169.81,169.75,46.50986603]
[1739978413677,27.86021717,169.79,169.74,86.14]
[1739978413878,27.86021717,169.78,169.74,5.24]
[1739978414188,27.89021717,169.77,169.7,128.91872326]
[1739978414481,27.89021717,169.77,169.7,125.90071717]
[1739978414787,27.89021717,169.77,169.71,46.50986603]
[1739978414956,0.03,169.77,169.72,27.86021717]
[1739978415151,0.03,169.77,169.73,18.64964886]
[1739978415782,0.03,169.77,169.73,27.86021717]
[1739978415960,0.03,169.77,169.73,33.75181717]
[1739978416363,0.03,169.77,169.74,46.50986603]
[1739978416571,0.03,169.77,169.75,27.86021717]
[1739978417062,0.03,169.77,169.73,80.9]
[1739978417777,27.86021717,169.76,169.73,80.9]
[1739978418084,27.86021717,169.74,169.7,5.24]
[1739978418958,27.86021717,169.71,169.7,5.24]
[1739978419180,27.86021717,169.71,169.65,5.22]
[1739978419389,27.86021717,169.68,169.65,5.22]
[1739978419596,27.86021717,169.67,169.65,5.22]
[1739978419779,20.0,169.72,169.6,151.31431617]
[1739978419780,27.86021717,169.66,169.6,80.9]
[1739978420091,27.86021717,169.7,169.6,80.9]
[1739978420092,27.86021717,169.65,169.6,80.9]
[1739978420255,27.86021717,169.65,169.6,86.7961]
[1739978420583,27.86021717,169.66,169.6,80.9]
[1739978420764,27.86021717,169.65,169.59,5.22]
[1739978420964,27.86021717,169.64,169.57,150.68991617]
[1739978421169,82.7,169.64,169.57,41.232599]
[1739978421461,27.86021717,169.63,169.57,5.263]
[1739978421678,27.86021717,169.65,169.59,27.86021717]
[1739978422274,27.86021717,169.67,169.61,18.64964886]
[1739978422464,27.86021717,169.71,169.64,27.86021717]
[1739978422663,27.86021717,169.73,169.66,27.86021717]
[1739978423090,82.7,169.74,169.65,5.22]
[1739978423091,110.56021717,169.74,169.67,27.86021717]
[1739978423904,27.86021717,169.72,169.65,27.86021717]
[1739978424082,27.86021717,169.72,169.65,33.06021717]
[1739978424394,27.86021717,169.72,169.65,38.95441717]
[1739978424775,27.86021717,169.75,169.68,27.86021717]
[1739978424980,27.86021717,169.76,169.69,27.86021717]
[1739978425479,5.9203,169.77,169.7,27.86021717]
[1739978425480,27.89021717,169.77,169.7,27.86021717]
[1739978425794,27.86021717,169.74,169.68,80.9]
[1739978425999,27.86021717,169.73,169.68,80.9]
[1739978426189,27.86021717,169.74,169.68,80.9]
[1739978426491,27.86021717,169.72,169.68,80.9]
[1739978427205,27.86021717,169.74,169.68,86.7934]
[1739978427487,27.86021717,169.74,169.68,86.8564]
[1739978427695,47.86021717,169.75,169.68,114.71661717]
[1739978427896,27.86021717,169.74,169.68,80.963]
[1739978428198,27.86021717,169.73,169.68,80.963]
[1739978429079,25.8911,169.75,169.68,86.8564]
[1739978429080,27.86021717,169.74,169.68,86.8564]
[1739978429473,20.0,169.75,169.7,27.86021717]
[1739978429679,0.03,169.76,169.71,27.86021717]
[1739978429885,0.03,169.76,169.72,27.86021717]
[1739978430084,0.03,169.76,169.73,33.04021717]
[1739978430293,0.03,169.76,169.75,5.891]
[1739978430497,0.03,169.76,169.75,27.86021717]
[1739978430779,0.03,169.76,169.74,52.40106603]
[1739978431275,0.03,169.76,169.74,336.54084886]
[1739978431596,0.03,169.76,169.74,364.40106603]
[1739978431893,0.03,169.76,169.74,52.40106603]
[1739978432200,0.03,169.76,169.73,5.18]
[1739978433890,0.03,169.76,169.72,87.4046]
[1739978433891,27.86021717,169.75,169.72,80.9]
[1739978434086,27.86021717,169.74,169.72,80.9]